[Event "NJSK 2023 Jeugd C"]
[Site "Almelo, Netherlands"]
[Date "2023.05.06"]
[Round "9.4"]
[White "Groenewoud, Joel"]
[Black "Kurt, Sascha"]
[Result "1/2-1/2"]
[TimeControl "90min/40moves + 30min + 30sec/move"]
[WhiteElo "1990"]
[BlackElo "1894"]

1. e4 {[%clk 01:30:58]} {[%emt 00:00:02]} c5 {[%clk 01:30:53]} {[%emt
00:00:08]} 2. Nf3 {[%clk 01:31:24]} {[%emt 00:00:04]} e6 {[%clk 01:31:15]}
{[%emt 00:00:08]} 3. d4 {[%clk 01:31:50]} {[%emt 00:00:04]} cxd4 {[%clk
01:31:41]} {[%emt 00:00:04]} 4. Nxd4 {[%clk 01:32:15]} {[%emt 00:00:05]} Nf6
{[%clk 01:32:07]} {[%emt 00:00:04]} 5. Nc3 {[%clk 01:32:38]} {[%emt 00:00:07]}
d6 {[%clk 01:32:33]} {[%emt 00:00:04]} 6. Be3 {[%clk 01:33:00]} {[%emt
00:00:08]} Be7 {[%clk 01:32:54]} {[%emt 00:00:07]} 7. f3 {[%clk 01:33:22]}
{[%emt 00:00:09]} Nc6 {[%clk 01:33:19]} {[%emt 00:00:05]} 8. Qd2 {[%clk
01:33:26]} {[%emt 00:00:27]} O-O {[%clk 01:33:38]} {[%emt 00:00:10]} 9. g4
{[%clk 01:33:45]} {[%emt 00:00:12]} d5 {[%clk 01:33:50]} {[%emt 00:00:18]} 10.
g5 {[%clk 01:33:56]} {[%emt 00:00:19]} Nh5 {[%clk 01:34:09]} {[%emt 00:00:11]}
11. O-O-O {[%clk 01:33:11]} {[%emt 00:01:14]} dxe4 {[%clk 01:33:01]} {[%emt
00:01:38]} 12. Nxc6 {[%clk 01:30:20]} {[%emt 00:03:21]} Qxd2+ {[%clk 01:33:19]}
{[%emt 00:00:12]} 13. Rxd2 {[%clk 01:30:38]} {[%emt 00:00:12]} bxc6 {[%clk
01:33:45]} {[%emt 00:00:04]} 14. Nxe4 {[%clk 01:31:00]} {[%emt 00:00:09]} e5
{[%clk 01:12:15]} {[%emt 00:22:00]} 15. Bc5 {[%clk 01:20:20]} {[%emt 00:11:10]}
Bxc5 {[%clk 01:10:24]} {[%emt 00:02:20]} 16. Nxc5 {[%clk 01:20:45]} {[%emt
00:00:06]} Nf4 {[%clk 01:04:10]} {[%emt 00:06:42]} 17. Bc4 {[%clk 01:14:29]}
{[%emt 00:06:47]} Nh3 {[%clk 01:00:59]} {[%emt 00:03:41]} 18. g6 {[%clk
00:56:32]} {[%emt 00:18:27]} hxg6 {[%clk 01:01:06]} {[%emt 00:00:23]} 19. Rd6
{[%clk 00:56:54]} {[%emt 00:00:08]} Bf5 {[%clk 00:58:21]} {[%emt 00:03:15]} 20.
Rxc6 {[%clk 00:55:20]} {[%emt 00:02:04]} Rac8 {[%clk 00:52:28]} {[%emt
00:06:22]} 21. Rxc8 {[%clk 00:54:58]} {[%emt 00:00:53]} Rxc8 {[%clk 00:52:45]}
{[%emt 00:00:12]} 22. b4 {[%clk 00:55:16]} {[%emt 00:00:14]} Ng5 {[%clk
00:51:59]} {[%emt 00:01:15]} 23. Bd5 {[%clk 00:54:16]} {[%emt 00:01:30]} Kf8
{[%clk 00:30:31]} {[%emt 00:21:58]} 24. Kb2 {[%clk 00:51:43]} {[%emt 00:03:04]}
Nh3 {[%clk 00:24:34]} {[%emt 00:06:27]} 25. c4 {[%clk 00:48:35]} {[%emt
00:03:37]} Nf4 {[%clk 00:23:38]} {[%emt 00:01:25]} 26. Be4 {[%clk 00:45:46]}
{[%emt 00:03:22]} Bxe4 {[%clk 00:17:53]} {[%emt 00:06:13]} 27. fxe4 {[%clk
00:46:10]} {[%emt 00:00:06]} Rd8 {[%clk 00:17:35]} {[%emt 00:00:47]} 28. Kc2
{[%clk 00:44:44]} {[%emt 00:01:57]} Rd4 {[%clk 00:17:37]} {[%emt 00:00:27]} 29.
Kb3 {[%clk 00:43:23]} {[%emt 00:01:53]} Ke7 {[%clk 00:16:02]} {[%emt 00:02:04]}
30. b5 {[%clk 00:41:38]} {[%emt 00:02:16]} Ne6 {[%clk 00:12:55]} {[%emt
00:03:36]} 31. Nxe6 {[%clk 00:22:47]} {[%emt 00:19:21]} Kxe6 {[%clk 00:13:10]}
{[%emt 00:00:15]} 32. Re1 {[%clk 00:22:38]} {[%emt 00:00:39]} f5 {[%clk
00:13:03]} {[%emt 00:00:37]} 33. exf5+ {[%clk 00:21:13]} {[%emt 00:01:56]} gxf5
{[%emt 00:02:09]} 34. a4 {[%clk 00:19:39]} f4 {[%clk 00:13:15]} {[%emt
00:00:43]} 35. c5 {[%clk 00:11:01]} {[%emt 00:09:08]} e4 {[%clk 00:03:31]}
{[%emt 00:10:14]} 36. b6 {[%clk 00:06:32]} {[%emt 00:04:59]} axb6 {[%clk
00:03:54]} {[%emt 00:00:07]} 37. cxb6 {[%clk 00:06:56]} {[%emt 00:00:06]} Kd7
{[%clk 00:03:35]} {[%emt 00:00:48]} 38. a5 {[%clk 00:05:36]} {[%emt 00:01:51]}
Kc8 {[%clk 00:03:14]} {[%emt 00:00:49]} 39. a6 {[%clk 00:03:23]} {[%emt
00:02:45]} Kb8 {[%clk 00:01:10]} {[%emt 00:02:34]} 40. Kc3 {[%clk 00:00:35]}
{[%emt 00:03:18]} Ra4 {[%clk 00:01:25]} {[%emt 00:00:13]} 41. a7+ {[%clk
00:00:34]} {[%emt 00:00:33]} Kb7 {[%clk 00:01:20]} {[%emt 00:00:34]} 42. Kb3
{[%clk 00:00:34]} {[%emt 00:00:30]} Rd4 {[%clk 00:00:54]} {[%emt 00:00:56]} 43.
Kc3 {[%clk 00:00:35]} {[%emt 00:00:30]} Ra4 {[%clk 00:01:19]} {[%emt 00:00:04]}
44. Kb3 {[%clk 00:00:40]} {[%emt 00:00:25]} Ra6 {[%clk 00:01:33]} {[%emt
00:00:15]} 45. Rxe4 {[%clk 00:00:42]} {[%emt 00:00:29]} Rxb6+ {[%clk 00:01:52]}
{[%emt 00:00:10]} 46. Kc3 {[%clk 00:00:35]} {[%emt 00:00:37]} g5 {[%clk
00:01:29]} {[%emt 00:00:53]} 47. Re7+ {[%clk 00:00:43]} {[%emt 00:00:22]} Ka8
{[%clk 00:01:45]} {[%emt 00:00:12]} 48. Rg7 {[%clk 00:00:45]} {[%emt 00:00:29]}
Rb5 {[%clk 00:01:16]} {[%emt 00:00:59]} 49. Kd3 {[%clk 00:00:33]} {[%emt
00:00:42]} Rf5 {[%clk 00:00:54]} {[%emt 00:00:51]} 50. Ke2 {[%clk 00:00:36]}
{[%emt 00:00:28]} Ra5 {[%clk 00:01:09]} {[%emt 00:00:15]} 51. Kf3 {[%clk
00:00:36]} {[%emt 00:00:30]} Rf5 {[%clk 00:00:50]} {[%emt 00:00:48]} 52. h4
{[%clk 00:00:33]} {[%emt 00:00:34]} gxh4 {[%clk 00:01:03]} {[%emt 00:00:18]} 53.
Rh7 {[%clk 00:00:57]} {[%emt 00:00:05]} h3 {[%clk 00:01:09]} {[%emt 00:00:24]}
54. Rxh3 {[%clk 00:01:22]} {[%emt 00:00:06]} Kxa7 {[%clk 00:01:36]} {[%emt
00:00:02]} 55. Rh4 {[%clk 00:01:46]} {[%emt 00:00:06]} Kb6 {[%clk 00:01:59]}
{[%emt 00:00:07]} 56. Rxf4 {[%clk 00:02:11]} {[%emt 00:00:05]} Rxf4+ {[%clk
00:02:23]} {[%emt 00:00:06]} 57. Kxf4 {[%clk 00:02:35]} {[%emt 00:00:06]}
1/2-1/2

[Event "NJSK 2023 Jeugd C"]
[Site "Almelo, Netherlands"]
[Date "2023.05.06"]
[Round "9.5"]
[White "Katpatal, Akshaj"]
[Black "Terlouw, Wouter"]
[Result "1/2-1/2"]
[TimeControl "90min/40moves + 30min + 30sec/move"]
[WhiteElo "1840"]
[BlackElo "1923"]

1. e4 {[%clk 01:30:54]} {[%emt 00:00:06]} c5 {[%clk 01:30:58]} {[%emt
00:00:03]} 2. Nf3 {[%clk 01:31:13]} {[%emt 00:00:10]} Nc6 {[%clk 01:31:25]}
{[%emt 00:00:04]} 3. d4 {[%clk 01:31:39]} {[%emt 00:00:04]} cxd4 {[%clk
01:31:51]} {[%emt 00:00:04]} 4. Nxd4 {[%clk 01:32:00]} {[%emt 00:00:08]} Nf6
{[%clk 01:32:17]} {[%emt 00:00:04]} 5. Nc3 {[%clk 01:32:19]} {[%emt 00:00:11]}
e5 {[%clk 01:32:43]} {[%emt 00:00:04]} 6. Nb3 {[%clk 01:31:55]} {[%emt
00:00:54]} Bb4 {[%clk 01:33:06]} {[%emt 00:00:07]} 7. Bd3 {[%clk 01:32:10]}
{[%emt 00:00:15]} d5 {[%clk 01:33:31]} {[%emt 00:00:05]} 8. exd5 {[%clk
01:32:18]} {[%emt 00:00:23]} Nxd5 {[%clk 01:33:55]} {[%emt 00:00:06]} 9. Bd2
{[%clk 01:32:41]} {[%emt 00:00:06]} Nxc3 {[%clk 01:34:19]} {[%emt 00:00:06]} 10.
bxc3 {[%clk 01:33:06]} {[%emt 00:00:04]} Be7 {[%clk 01:34:44]} {[%emt
00:00:05]} 11. O-O {[%clk 01:33:20]} {[%emt 00:00:13]} Be6 {[%clk 01:34:45]}
{[%emt 00:00:32]} 12. Be3 {[%clk 01:27:21]} {[%emt 00:06:27]} f5 {[%clk
01:32:05]} {[%emt 00:03:12]} 13. Nc5 {[%clk 01:16:15]} {[%emt 00:11:35]} Bxc5
{[%clk 01:31:28]} {[%emt 00:01:08]} 14. Bxc5 {[%clk 01:16:13]} {[%emt
00:00:32]} Qa5 {[%clk 01:30:59]} {[%emt 00:00:59]} 15. Bb4 {[%clk 01:14:57]}
{[%emt 00:01:46]} Nxb4 {[%clk 01:30:24]} {[%emt 00:01:05]} 16. cxb4 {[%clk
01:15:22]} {[%emt 00:00:05]} Qxb4 {[%clk 01:30:26]} {[%emt 00:00:27]} 17. Rb1
{[%clk 01:15:46]} {[%emt 00:00:07]} Qe7 {[%clk 01:30:44]} {[%emt 00:00:10]} 18.
Bb5+ {[%clk 01:15:50]} {[%emt 00:00:28]} Kf7 {[%clk 01:30:04]} {[%emt
00:01:09]} 19. Qe2 {[%clk 01:14:16]} {[%emt 00:02:04]} Bxa2 {[%emt 00:04:36]}
20. Rb2 {[%clk 01:12:04]} {[%emt 00:02:40]} Bd5 {[%clk 01:24:36]} {[%emt
00:01:55]} 21. Rd1 {[%clk 01:02:04]} {[%emt 00:10:30]} Rad8 {[%clk 01:21:56]}
{[%emt 00:03:09]} 22. Rxd5 {[%clk 00:59:13]} {[%emt 00:03:22]} Rxd5 {[%clk
01:21:47]} {[%emt 00:00:39]} 23. Bc4 {[%clk 00:59:37]} {[%emt 00:00:06]} Rhd8
{[%clk 01:14:54]} {[%emt 00:07:22]} 24. Rb5 {[%clk 00:57:24]} {[%emt 00:02:43]}
Qe6 {[%clk 01:11:17]} {[%emt 00:04:07]} 25. Bxd5 {[%clk 00:56:32]} {[%emt
00:01:22]} Rxd5 {[%clk 01:11:35]} {[%emt 00:00:13]} 26. Rxb7+ {[%clk 00:56:42]}
{[%emt 00:00:21]} Rd7 {[%clk 01:05:12]} {[%emt 00:06:52]} 27. Rxd7+ {[%clk
00:51:46]} {[%emt 00:05:26]} Qxd7 {[%clk 01:04:40]} {[%emt 00:01:02]} 28. h3
{[%clk 00:52:06]} {[%emt 00:00:09]} e4 {[%clk 01:04:12]} {[%emt 00:00:58]} 29.
Qc4+ {[%clk 00:51:56]} {[%emt 00:00:40]} Kg6 {[%clk 01:02:33]} {[%emt
00:02:09]} 30. Qa6+ {[%clk 00:52:07]} {[%emt 00:00:19]} Kf7 {[%clk 01:02:41]}
{[%emt 00:00:21]} 31. Qc4+ {[%clk 00:52:27]} {[%emt 00:00:11]} Kf8 {[%clk
01:01:24]} {[%emt 00:01:46]} 32. Qc5+ {[%clk 00:52:46]} {[%emt 00:00:12]} Ke8
{[%clk 00:59:13]} {[%emt 00:02:41]} 33. Qe5+ {[%clk 00:52:30]} {[%emt
00:00:46]} Kf7 {[%clk 00:59:26]} {[%emt 00:00:14]} 34. Qc5 {[%clk 00:50:09]}
{[%emt 00:02:54]} Qd1+ {[%clk 00:58:17]} {[%emt 00:01:39]} 35. Kh2 {[%clk
00:50:29]} {[%emt 00:00:09]} Ke6 {[%clk 00:58:16]} {[%emt 00:00:31]} 36. g3
{[%clk 00:49:01]} {[%emt 00:02:00]} Qd2 {[%clk 00:52:15]} {[%emt 00:06:30]} 37.
Kg1 {[%clk 00:46:52]} {[%emt 00:02:39]} Qd1+ {[%clk 00:50:31]} {[%emt
00:02:14]} 38. Kh2 {[%clk 00:47:02]} {[%emt 00:00:21]} Qd2 {[%clk 00:50:54]}
{[%emt 00:00:07]} 39. Qxa7 {[%clk 00:39:06]} {[%emt 00:08:26]} Qxc2 {[%clk
00:51:13]} {[%emt 00:00:10]} 40. Kg2 {[%clk 00:38:48]} {[%emt 00:00:48]} Qc3
{[%clk 00:43:21]} {[%emt 00:08:22]} 41. Qb6+ {[%clk 00:38:52]} {[%emt
00:00:26]} Kf7 {[%clk 00:41:54]} {[%emt 00:01:57]} 42. Qb7+ {[%clk 00:39:09]}
{[%emt 00:00:14]} Kg6 {[%clk 00:42:15]} {[%emt 00:00:08]} 43. Qd5 {[%clk
00:36:45]} {[%emt 00:02:55]} h5 {[%clk 00:39:07]} {[%emt 00:03:38]} 44. Qe6+
{[%clk 00:36:14]} {[%emt 00:01:00]} Qf6 {[%clk 00:39:19]} {[%emt 00:00:18]} 45.
Qe8+ {[%clk 00:36:04]} {[%emt 00:00:41]} Qf7 {[%clk 00:39:38]} {[%emt
00:00:10]} 46. Qc6+ {[%clk 00:36:23]} {[%emt 00:00:11]} Kh7 {[%clk 00:40:02]}
{[%emt 00:00:06]} 47. Qd6 {[%clk 00:35:59]} {[%emt 00:00:54]} h4 {[%clk
00:36:54]} {[%emt 00:03:38]} 48. gxh4 {[%clk 00:35:17]} {[%emt 00:01:13]} Qg6+
{[%clk 00:36:53]} {[%emt 00:00:31]} 49. Qg3 {[%clk 00:19:42]} {[%emt 00:16:04]}
Kh6 {[%emt 00:04:44]} 50. Kh2 {[%clk 00:13:31]} {[%emt 00:06:40]} Qxg3+ {[%clk
00:33:04]} {[%emt 00:00:06]} 51. Kxg3 {[%clk 00:13:55]} {[%emt 00:00:06]} g6
{[%clk 00:24:19]} {[%emt 00:09:15]} 52. Kf4 {[%clk 00:14:19]} {[%emt 00:00:07]}
Kh5 {[%clk 00:24:38]} {[%emt 00:00:10]} 53. Kg3 {[%clk 00:14:42]} {[%emt
00:00:07]} Kh6 {[%clk 00:24:42]} {[%emt 00:00:27]} 54. Kf4 {[%clk 00:15:00]}
{[%emt 00:00:12]} Kh5 {[%clk 00:25:07]} {[%emt 00:00:05]} 55. Kg3 {[%clk
00:15:26]} {[%emt 00:00:03]} Kh6 {[%clk 00:25:32]} {[%emt 00:00:05]} 56. Kf4
{[%clk 00:15:54]} {[%emt 00:00:03]} Kh5 {[%clk 00:25:54]} {[%emt 00:00:07]}
1/2-1/2

[Event "NJSK 2023 Jeugd C"]
[Site "Almelo, Netherlands"]
[Date "2023.05.06"]
[Round "9.6"]
[White "Krylov, Philippe"]
[Black "Roolvink, William"]
[Result "1-0"]
[TimeControl "90min/40moves + 30min + 30sec/move"]
[WhiteElo "1858"]
[BlackElo "1852"]

1. d4 {[%clk 01:30:57]} {[%emt 00:00:03]} Nf6 {[%clk 01:30:59]} {[%emt
00:00:02]} 2. c4 {[%clk 01:31:21]} {[%emt 00:00:06]} g6 {[%clk 01:31:19]}
{[%emt 00:00:09]} 3. Nc3 {[%clk 01:31:47]} {[%emt 00:00:05]} d6 {[%clk
01:31:46]} {[%emt 00:00:03]} 4. e4 {[%clk 01:31:22]} {[%emt 00:00:55]} Bg7
{[%clk 01:32:12]} {[%emt 00:00:04]} 5. f3 {[%clk 01:31:48]} {[%emt 00:00:04]}
O-O {[%clk 01:32:37]} {[%emt 00:00:06]} 6. Bg5 {[%clk 01:32:12]} {[%emt
00:00:05]} c5 {[%clk 01:33:02]} {[%emt 00:00:05]} 7. d5 {[%clk 01:32:39]}
{[%emt 00:00:03]} e6 {[%clk 01:33:11]} {[%emt 00:00:21]} 8. Qd2 {[%clk
01:33:04]} {[%emt 00:00:04]} h6 {[%clk 01:33:37]} {[%emt 00:00:04]} 9. Be3
{[%clk 01:33:21]} {[%emt 00:00:13]} a6 {[%clk 01:33:56]} {[%emt 00:00:11]} 10.
a4 {[%clk 01:32:18]} {[%emt 00:01:34]} exd5 {[%clk 01:33:07]} {[%emt 00:01:18]}
11. cxd5 {[%clk 01:32:34]} {[%emt 00:00:14]} h5 {[%clk 01:33:14]} {[%emt
00:00:24]} 12. Nge2 {[%clk 01:29:37]} {[%emt 00:03:26]} Nbd7 {[%clk 01:30:38]}
{[%emt 00:03:05]} 13. Nc1 {[%clk 01:16:04]} {[%emt 00:14:04]} Ne5 {[%clk
01:22:42]} {[%emt 00:08:27]} 14. Be2 {[%clk 01:08:27]} {[%emt 00:08:06]} Re8
{[%clk 01:03:10]} {[%emt 00:20:03]} 15. O-O {[%clk 01:06:48]} {[%emt 00:02:08]}
h4 {[%clk 00:57:24]} {[%emt 00:06:17]} 16. h3 {[%clk 00:44:39]} {[%emt
00:22:38]} Nh5 {[%clk 00:48:55]} {[%emt 00:08:59]} 17. f4 {[%clk 00:38:49]}
{[%emt 00:06:20]} Ng3 {[%clk 00:17:10]} {[%emt 00:32:14]} 18. fxe5 {[%clk
00:37:07]} {[%emt 00:02:12]} Nxf1 {[%clk 00:16:41]} {[%emt 00:00:59]} 19. Bxf1
{[%clk 00:36:52]} {[%emt 00:00:45]} Bxe5 {[%clk 00:16:42]} {[%emt 00:00:29]} 20.
Nd3 {[%clk 00:34:18]} {[%emt 00:03:04]} Bg7 {[%clk 00:16:29]} {[%emt 00:00:43]}
21. Nf2 {[%clk 00:29:57]} {[%emt 00:04:51]} f5 {[%clk 00:13:50]} {[%emt
00:03:09]} 22. Bd3 {[%clk 00:24:50]} {[%emt 00:05:38]} Rf8 {[%clk 00:13:55]}
{[%emt 00:00:26]} 23. Bh6 {[%clk 00:22:08]} {[%emt 00:03:11]} Bd7 {[%clk
00:13:00]} {[%emt 00:01:24]} 24. Bxg7 {[%clk 00:21:26]} {[%emt 00:01:12]} Kxg7
{[%clk 00:13:29]} {[%emt 00:00:02]} 25. exf5 {[%clk 00:20:48]} {[%emt
00:01:08]} gxf5 {[%clk 00:13:13]} {[%emt 00:00:45]} 26. Ne2 {[%clk 00:15:50]}
{[%emt 00:05:29]} Rg8 {[%clk 00:12:05]} {[%emt 00:01:37]} 27. Nf4 {[%clk
00:14:13]} {[%emt 00:02:07]} Kh8 {[%clk 00:11:41]} {[%emt 00:00:54]} 28. Qc3+
{[%clk 00:07:01]} {[%emt 00:07:43]} Kh7 {[%clk 00:11:23]} {[%emt 00:00:48]} 29.
Ng4 {[%clk 00:06:23]} {[%emt 00:01:07]} Qg5 {[%clk 00:01:20]} {[%emt 00:10:34]}
30. Nf6+ {[%clk 00:06:33]} {[%emt 00:00:20]} Kh6 {[%clk 00:01:48]} {[%emt
00:00:02]} 31. Nxg8+ {[%clk 00:06:28]} {[%emt 00:00:34]} Rxg8 {[%clk 00:02:16]}
{[%emt 00:00:02]} 32. Qd2 {[%clk 00:05:33]} {[%emt 00:01:25]} Kh7 {[%clk
00:00:34]} {[%emt 00:02:13]} 33. Qf2 {[%clk 00:04:04]} {[%emt 00:01:59]} Qf6
{[%clk 00:00:38]} {[%emt 00:00:26]} 34. Re1 {[%clk 00:03:54]} {[%emt 00:00:39]}
Bxa4 {[%emt 00:00:38]} 35. Re6 {[%clk 00:04:03]} {[%emt 00:00:20]} Qg5 {[%clk
00:00:32]} {[%emt 00:00:31]} 36. Bxf5+ {[%clk 00:02:20]} {[%emt 00:02:11]} Qxf5
{[%clk 00:00:33]} {[%emt 00:00:31]} 37. Qxh4+ {[%clk 00:02:45]} {[%emt
00:00:04]} Kg7 {[%clk 00:00:52]} {[%emt 00:00:12]} 38. Re7+ {[%clk 00:02:43]}
{[%emt 00:00:32]} Kf8 {[%clk 00:00:34]} {[%emt 00:00:47]} 39. Ne6+ {[%clk
00:03:07]} {[%emt 00:00:06]} Qxe6 {[%clk 00:00:32]} {[%emt 00:00:32]} 40. dxe6
{[%clk 00:03:26]} {[%emt 00:00:11]} Bc6 {[%clk 00:00:50]} {[%emt 00:00:13]} 41.
Qf6# {[%clk 00:03:18]} {[%emt 00:00:07]} 1-0

[Event "NJSK 2023 Jeugd C"]
[Site "Almelo, Netherlands"]
[Date "2023.05.06"]
[Round "9.7"]
[White "Wortman, Rawi"]
[Black "Kazarjan, Gachatur"]
[Result "0-1"]
[TimeControl "90min/40moves + 30min + 30sec/move"]
[WhiteElo "1668"]
[BlackElo "1872"]

1. e4 {[%clk 01:31:00]} d5 {[%clk 01:30:55]} {[%emt 00:00:05]} 2. exd5 {[%clk
01:31:26]} {[%emt 00:00:03]} Nf6 {[%clk 01:31:22]} {[%emt 00:00:04]} 3. d4
{[%clk 01:31:52]} {[%emt 00:00:04]} Bg4 {[%clk 01:31:48]} {[%emt 00:00:04]} 4.
f3 {[%clk 01:29:50]} {[%emt 00:02:32]} Bf5 {[%clk 01:30:39]} {[%emt 00:01:39]}
5. Bb5+ {[%clk 01:29:59]} {[%emt 00:00:21]} Nbd7 {[%clk 01:30:38]} {[%emt
00:00:31]} 6. c4 {[%clk 01:29:43]} {[%emt 00:00:45]} a6 {[%clk 01:30:20]}
{[%emt 00:00:49]} 7. Ba4 {[%clk 01:30:01]} {[%emt 00:00:13]} b5 {[%clk
01:29:34]} {[%emt 00:01:15]} 8. cxb5 {[%clk 01:29:02]} {[%emt 00:01:29]} Nxd5
{[%clk 01:29:41]} {[%emt 00:00:23]} 9. Nc3 {[%clk 01:28:02]} {[%emt 00:01:30]}
Nb4 {[%clk 01:26:55]} {[%emt 00:03:16]} 10. Ne4 {[%clk 01:26:10]} {[%emt
00:02:22]} e6 {[%clk 01:26:51]} {[%emt 00:00:33]} 11. a3 {[%clk 01:25:19]}
{[%emt 00:01:22]} Bxe4 {[%clk 01:25:13]} {[%emt 00:02:08]} 12. axb4 {[%clk
01:20:52]} {[%emt 00:04:56]} Bxb4+ {[%clk 01:24:52]} {[%emt 00:00:52]} 13. Bd2
{[%clk 01:20:50]} {[%emt 00:00:32]} Bxd2+ {[%clk 01:25:17]} {[%emt 00:00:04]}
14. Qxd2 {[%clk 01:21:13]} {[%emt 00:00:06]} axb5 {[%clk 01:25:42]} {[%emt
00:00:07]} 15. fxe4 {[%clk 01:20:32]} {[%emt 00:01:11]} Qh4+ {[%clk 01:21:20]}
{[%emt 00:04:51]} 16. Kd1 {[%clk 01:19:47]} {[%emt 00:01:15]} Qxe4 {[%clk
01:21:33]} {[%emt 00:00:18]} 17. Nf3 {[%clk 01:19:46]} {[%emt 00:00:30]} O-O
{[%clk 01:20:33]} {[%emt 00:01:31]} 18. Re1 {[%clk 01:19:48]} {[%emt 00:00:27]}
Qd5 {[%clk 01:20:54]} {[%emt 00:00:09]} 19. Qc2 {[%clk 01:17:33]} {[%emt
00:02:46]} c5 {[%clk 01:18:21]} {[%emt 00:03:03]} 20. Bb3 {[%clk 01:14:21]}
{[%emt 00:03:42]} Rxa1+ {[%clk 01:18:35]} {[%emt 00:00:15]} 21. Kd2 {[%clk
01:14:46]} {[%emt 00:00:06]} Qa8 {[%clk 01:19:00]} {[%emt 00:00:05]} 22. Rxa1
{[%clk 01:13:57]} {[%emt 00:01:18]} Qxa1 {[%clk 01:19:25]} {[%emt 00:00:06]} 23.
dxc5 {[%clk 01:14:09]} {[%emt 00:00:17]} Qf1 {[%clk 01:19:47]} {[%emt
00:00:08]} 24. c6 {[%clk 01:12:20]} {[%emt 00:02:20]} Nb6 {[%clk 01:19:43]}
{[%emt 00:00:34]} 0-1

[Event "NJSK 2023 Jeugd C"]
[Site "Almelo, Netherlands"]
[Date "2023.05.06"]
[Round "9.8"]
[White "Roorda, Cas"]
[Black "Lopes, Samuel"]
[Result "0-1"]
[TimeControl "90min/40moves + 30min + 30sec/move"]
[WhiteElo "1769"]
[BlackElo "1865"]

1. e4 {[%clk 01:30:58]} c5 {[%clk 01:30:54]} {[%emt 00:00:07]} 2. Nf3 {[%clk
01:31:25]} {[%emt 00:00:03]} d6 {[%clk 01:31:16]} {[%emt 00:00:08]} 3. d4
{[%clk 01:31:53]} {[%emt 00:00:02]} cxd4 {[%clk 01:31:38]} {[%emt 00:00:07]} 4.
Nxd4 {[%clk 01:32:20]} {[%emt 00:00:02]} Nf6 {[%clk 01:31:59]} {[%emt
00:00:10]} 5. Nc3 {[%clk 01:32:47]} {[%emt 00:00:03]} Nc6 {[%clk 01:32:21]}
{[%emt 00:00:07]} 6. Bg5 {[%clk 01:33:12]} {[%emt 00:00:04]} e6 {[%clk
01:32:45]} {[%emt 00:00:07]} 7. Qd3 {[%clk 01:33:39]} {[%emt 00:00:03]} Be7
{[%clk 01:32:46]} {[%emt 00:00:29]} 8. O-O-O {[%clk 01:33:55]} {[%emt
00:00:14]} O-O {[%clk 01:30:55]} {[%emt 00:02:21]} 9. h4 {[%clk 01:33:16]}
{[%emt 00:01:09]} Bd7 {[%clk 01:28:40]} {[%emt 00:02:46]} 10. Kb1 {[%clk
01:33:21]} {[%emt 00:00:25]} a6 {[%clk 01:27:17]} {[%emt 00:01:52]} 11. Qg3
{[%clk 01:33:22]} {[%emt 00:00:29]} Kh8 {[%clk 01:27:03]} {[%emt 00:00:44]} 12.
Be2 {[%clk 01:27:12]} {[%emt 00:06:40]} Nxd4 {[%clk 01:23:31]} {[%emt
00:04:02]} 13. Rxd4 {[%clk 01:27:35]} {[%emt 00:00:06]} Rc8 {[%clk 01:21:47]}
{[%emt 00:02:15]} 14. Rhd1 {[%clk 01:14:10]} {[%emt 00:13:55]} Rc7 {[%clk
01:08:20]} {[%emt 00:13:57]} 15. f4 {[%clk 01:04:23]} {[%emt 00:10:16]} Qc8
{[%clk 00:54:12]} {[%emt 00:14:39]} 16. e5 {[%clk 00:53:45]} {[%emt 00:11:08]}
dxe5 {[%clk 00:50:14]} {[%emt 00:04:28]} 17. fxe5 {[%clk 00:53:49]} {[%emt
00:00:26]} Ng8 {[%clk 00:48:36]} {[%emt 00:02:08]} 18. Rg4 {[%clk 00:26:05]}
{[%emt 00:28:14]} f5 {[%clk 00:33:09]} {[%emt 00:15:56]} 19. Rf4 {[%clk
00:17:21]} {[%emt 00:09:14]} b5 {[%clk 00:31:15]} {[%emt 00:02:24]} 20. Bd3
{[%clk 00:12:49]} {[%emt 00:05:02]} Qb7 {[%clk 00:25:15]} {[%emt 00:06:29]} 21.
Bxe7 {[%clk 00:09:18]} {[%emt 00:04:03]} Nxe7 {[%clk 00:25:26]} {[%emt
00:00:19]} 22. Qg5 {[%clk 00:09:12]} {[%emt 00:00:36]} Ng6 {[%clk 00:22:27]}
{[%emt 00:03:29]} 23. Rd4 {[%clk 00:07:11]} {[%emt 00:02:30]} Nxe5 {[%clk
00:18:44]} {[%emt 00:04:12]} 24. Qe7 {[%clk 00:06:25]} {[%emt 00:01:17]} Ng6
{[%clk 00:17:16]} {[%emt 00:01:58]} 25. Qb4 {[%clk 00:05:34]} {[%emt 00:01:21]}
Qc8 {[%clk 00:10:59]} {[%emt 00:06:48]} 26. g4 {[%clk 00:04:36]} {[%emt
00:01:27]} Ne5 {[%clk 00:10:57]} {[%emt 00:00:32]} 27. Rf4 {[%clk 00:04:06]}
{[%emt 00:01:00]} Nxg4 {[%clk 00:10:24]} {[%emt 00:01:03]} 28. Rdf1 {[%clk
00:01:54]} {[%emt 00:02:43]} Ne3 {[%clk 00:09:44]} {[%emt 00:01:09]} 29. R1f3
{[%clk 00:02:00]} {[%emt 00:00:25]} Ng2 {[%clk 00:06:26]} {[%emt 00:03:47]} 30.
Rg4 {[%clk 00:01:40]} {[%emt 00:00:51]} Ne1 {[%clk 00:06:45]} {[%emt 00:00:10]}
31. Rxg7 {[%clk 00:01:04]} {[%emt 00:01:07]} Kxg7 {[%clk 00:06:00]} {[%emt
00:01:14]} 32. Qe7+ {[%clk 00:00:53]} {[%emt 00:00:41]} Kh8 {[%clk 00:06:07]}
{[%emt 00:00:23]} 33. Rg3 {[%clk 00:01:07]} {[%emt 00:00:17]} Bc6 {[%clk
00:06:27]} {[%emt 00:00:09]} 34. Qd6 {[%clk 00:00:54]} {[%emt 00:00:43]} Nxd3
{[%clk 00:05:55]} {[%emt 00:01:02]} 35. cxd3 {[%clk 00:01:15]} {[%emt
00:00:09]} Rcf7 {[%clk 00:05:55]} {[%emt 00:00:31]} 0-1